bitfinex-derivatives/quotes_SOLF0:USTF0_20250818
["timestamp","ask_amount","ask_price","bid_price","bid_amount"]
[1755479977791,2.86,189.33,189.24,2.84]
[1755479977992,2.86,189.33,189.27,5.2797]
[1755479977993,5.2786,189.32,189.27,5.2797]
[1755479978192,2.86,189.32,189.26,2.84]
[1755479978497,2.86,189.32,189.28,5.2795]
[1755479978697,2.86,189.31,189.3,2.84]
[1755479979202,4.3115793,189.31,189.26,2.84]
[1755479979402,4.31104139,189.3,189.26,2.84]
[1755479979600,2.86,189.35,189.31,5.2786]
[1755479979801,4.31033956,189.34,189.32,2.84]
[1755479979995,7.17033956,189.33,189.26,2.84]
[1755479980192,4.14774077,189.32,189.26,2.84]
[1755479980395,5.79481457,189.4,189.26,2.84]
[1755479980597,2.86,189.38,189.26,2.84]
[1755479980801,8.1377,189.36,189.26,2.84]
[1755479981004,2.86,189.34,189.26,2.84]
[1755479981202,2.86,189.32,189.26,2.84]
[1755479981802,5.79481457,189.39,189.25,0.91937018]
[1755479982004,2.86,189.37,189.26,2.84]
[1755479982203,2.86,189.35,189.26,2.84]
[1755479982399,2.86,189.33,189.26,2.84]
[1755479982597,2.86,189.3,189.28,5.2796]
[1755479982797,2.86,189.32,189.3,2.84]
[1755479982997,5.79481457,189.39,189.31,2.84]
[1755479983197,2.86,189.32,189.31,2.84]
[1755479983703,2.86,189.38,189.31,2.84]
[1755479983899,2.86,189.36,189.31,2.84]
[1755479984105,4.1458721,189.35,189.34,2.84]
[1755479984701,7.0058721,189.35,189.34,2.84]
[1755479985204,7.0058721,189.35,189.34,8.118]
[1755479985405,4.1458721,189.35,189.34,8.118]
[1755479985607,2.86,189.36,189.34,8.118]
[1755479985804,2.86,189.37,189.29,2.84]
[1755479986205,5.2778,189.35,189.3,5.2791]
[1755479986502,2.86,189.34,189.3,2.84]
[1755479986710,5.2787,189.32,189.27,5.2799]
[1755479987004,2.86,189.31,189.29,2.84]
[1755479987398,2.86,189.32,189.31,2.84]
[1755479987595,2.86,189.32,189.26,2.84]
[1755479988799,2.86,189.32,189.26,8.12]
[1755479989009,2.86,189.32,189.24,2.89]
[1755479989496,2.89,189.27,189.25,2.89]
[1755479989700,2.89,189.27,189.23,132.04]
[1755479989900,2.89,189.3,189.23,132.04]
[1755479990103,2.89,189.3,189.28,2.89]
[1755479990307,2.89,189.3,189.26,8.1701]
[1755479990503,5.279,189.31,189.26,8.1701]
[1755479990504,2.89,189.29,189.27,2.89]
[1755479990902,2.89,189.29,189.25,8.1704]
[1755479991102,3.32086544,189.4,189.25,2.89]
[1755479991300,2.89,189.27,189.25,2.89]
[1755479991611,2.89,189.35,189.2,2.89]
[1755479991809,3.32086544,189.32,189.2,2.89]
[1755479992002,2.89,189.31,189.2,2.89]
[1755479992211,2.89,189.31,189.18,2.89]
[1755479992409,2.89,189.31,189.24,0.03493305]
[1755479992715,2.89,189.31,189.18,2.89]
[1755479993214,2.89,189.31,189.19,2.89]
[1755479994105,2.89,189.26,189.19,2.89]
[1755479994812,0.03728966,189.27,189.2,2.89]
[1755479995017,2.89,189.26,189.2,2.89]
[1755479995517,2.89,189.26,189.18,2.89]
[1755479995713,2.89,189.26,189.14,2.89]
[1755479996112,2.89,189.18,189.15,2.89]
[1755479996313,2.89,189.3,189.14,2.89]
[1755479996518,2.89,189.21,189.14,2.89]
[1755479996712,5.2818,189.21,189.17,2.89]
[1755479996912,2.89,189.21,189.18,2.89]
[1755479997115,2.89,189.21,189.13,135.58086544]
[1755479997314,2.89,189.19,189.17,2.89]
[1755479997516,0.03804757,189.22,189.18,2.89]
[1755479997817,2.89,189.19,189.18,2.89]
[1755479998120,2.89,189.3,189.18,2.89]
[1755479998314,0.03561837,189.2,189.18,2.89]
[1755479998512,2.92561837,189.2,189.18,2.89]
[1755479998711,2.89,189.22,189.18,2.89]
[1755479998915,3.32086544,189.31,189.18,2.89]
[1755479998916,0.03881326,189.21,189.18,2.89]
[1755479999116,0.03881326,189.21,189.13,135.58086544]
[1755479999319,2.89,189.23,189.2,2.89]
[1755479999619,2.89,189.21,189.2,2.89]
[1755479999823,2.89,189.21,189.14,2.89]
[1755480000120,0.03913198,189.23,189.14,2.89]
[1755480000428,0.03913198,189.23,189.22,2.89]
[1755480000611,2.92913198,189.23,189.13,136.50074596]
[1755480000812,2.89,189.22,189.14,2.89]
[1755480001413,2.89,189.2,189.15,2.89]
[1755480001622,2.89,189.22,189.15,2.89]
[1755480002012,2.89,189.22,189.18,2.89]
[1755480002212,2.89,189.22,189.19,2.89]
[1755480002423,2.89,189.22,189.14,2.89]
[1755480002829,2.89,189.22,189.11,2.89]
[1755480003016,5.2824,189.19,189.12,5.2841]
[1755480003217,2.89,189.17,189.14,2.89]
[1755480003411,2.89,189.27,189.09,2.89]
[1755480003617,0.03719361,189.17,189.13,2.89]
[1755480004016,5.281,189.24,189.16,5.2827]
[1755480004317,2.89,189.23,189.17,2.89]
[1755480004515,5.2815,189.22,189.17,2.89]
[1755480004717,2.89,189.21,189.17,2.89]
[1755480005021,2.89,189.18,189.12,3.32086544]
[1755480005224,2.89,189.18,189.16,2.89]
[1755480005923,3.32086544,189.28,189.16,2.89]
[1755480005924,2.89,189.17,189.16,2.89]
[1755480006318,2.89,189.19,189.17,2.89]
[1755480006713,3.32086544,189.29,189.18,2.89]
[1755480006917,2.89,189.27,189.18,2.89]
[1755480007122,0.03410939,189.2,189.18,2.89]
[1755480007317,0.03410939,189.2,189.18,8.1724]
[1755480007525,2.89,189.19,189.17,2.89]
[1755480008219,2.89,189.19,189.13,2.89]
[1755480008619,0.03483687,189.21,189.13,2.89]
[1755480008824,0.03483687,189.21,189.17,2.89]
[1755480009030,0.03483687,189.21,189.19,5.2821]
[1755480009231,2.89,189.25,189.2,2.89]
[1755480009628,0.03426172,189.22,189.2,2.89]
[1755480009826,2.89,189.21,189.18,2.89]
[1755480010135,2.89,189.24,189.17,2.89]
[1755480010426,2.89,189.2,189.17,2.89]
[1755480010633,2.89,189.19,189.17,2.89]
[1755480010831,2.89,189.18,189.17,2.89]
[1755480011625,0.03455593,189.2,189.17,2.89]
[1755480011821,2.92455593,189.2,189.18,2.89]
[1755480012125,2.92455593,189.2,189.11,3.32086544]
[1755480012126,0.03455593,189.2,189.11,3.32086544]
[1755480012325,0.03455593,189.2,189.12,2.89]
[1755480013137,0.03455593,189.2,189.17,5.2827]
[1755480013323,0.03455593,189.2,189.11,3.32086544]
[1755480013324,0.03455593,189.2,189.19,2.89]
[1755480013734,2.92455593,189.2,189.12,2.89]
[1755480014236,2.89,189.2,189.12,2.89]
[1755480014427,2.89,189.29,189.15,2.89]
[1755480014841,3.32086544,189.33,189.23,2.89]
[1755480014842,0.03753529,189.24,189.23,2.89]
[1755480015233,2.89,189.28,189.23,2.89]
[1755480015532,0.03818333,189.25,189.24,2.89]
[1755480015928,2.89,189.26,189.24,2.89]
[1755480016128,2.89,189.26,189.25,2.89]
[1755480016324,2.92490217,189.26,189.25,2.89]
[1755480016632,0.03490217,189.26,189.18,3.32086544]
[1755480016826,0.03490217,189.26,189.19,2.89]
[1755480017030,0.03490217,189.26,189.25,8.1705]
[1755480017241,0.03490217,189.26,189.25,2.89]
[1755480018845,0.03490217,189.26,189.23,2.87]
[1755480019146,0.03490217,189.26,189.21,5.2814]
[1755480019147,2.93,189.25,189.21,5.2814]
[1755480019435,2.93,189.28,189.23,2.87]
[1755480019639,2.93,189.26,189.21,2.87]
[1755480019831,2.93,189.33,189.19,2.87]
[1755480020037,8.24931088,189.27,189.19,2.87]
[1755480020238,2.93,189.26,189.19,2.87]
[1755480020732,2.93,189.26,189.2,5.2818]
[1755480020939,2.93,189.26,189.21,2.87]
[1755480021133,5.31931088,189.27,189.2,5.2818]
[1755480021333,5.31931088,189.27,189.19,5.2821]
[1755480021334,0.03931088,189.27,189.19,5.2821]
[1755480021538,2.93,189.24,189.18,3.32086544]
[1755480021743,2.93,189.24,189.23,2.87]
[1755480022137,2.93,189.33,189.23,2.87]
[1755480022330,0.03587648,189.25,189.23,2.87]
[1755480022535,2.96587648,189.25,189.24,2.87]
[1755480022738,2.93,189.23,189.22,2.87]
[1755480022935,0.03366889,189.26,189.22,2.87]
[1755480023444,2.93,189.33,189.22,2.87]
[1755480023643,0.03420268,189.26,189.22,2.87]
[1755480023842,2.96420268,189.26,189.21,2.87]
[1755480024040,354.82,189.34,189.22,2.87]
[1755480024243,2.93,189.32,189.22,2.87]
[1755480024439,2.93,189.24,189.22,2.87]
[1755480024639,2.9662323,189.25,189.24,2.87]
[1755480024837,2.9662323,189.25,189.22,2.87]
[1755480024838,2.93,189.25,189.22,2.87]
[1755480025040,2.93,189.31,189.15,2.87]
[1755480025239,2.93,189.27,189.15,2.87]
[1755480025736,0.03743256,189.23,189.15,3.32086544]
[1755480025942,0.03743256,189.23,189.21,5.2815]
[1755480026141,2.96743256,189.23,189.2,2.87]
[1755480026442,2.93,189.22,189.16,2.87]
[1755480027239,0.03743256,189.23,189.18,2.87]
[1755480027647,2.93,189.22,189.18,2.87]
[1755480028030,5.2815,189.22,189.18,2.87]
[1755480028232,2.93,189.2,189.18,2.87]
[1755480028440,2.93,189.19,189.18,2.87]
[1755480028746,0.03743256,189.23,189.12,2.87]
[1755480028947,0.03743256,189.23,189.12,8.73398102]
[1755480029146,3.32086544,189.32,189.2,5.2816]
[1755480029351,2.93,189.3,189.16,2.87]
[1755480029538,0.03625473,189.19,189.16,2.87]
[1755480029734,2.93,189.23,189.17,5.2825]
[1755480029938,2.93,189.23,189.18,2.87]
[1755480030438,2.96799016,189.22,189.17,2.87]
[1755480030639,0.03799016,189.22,189.17,2.87]
[1755480030841,0.03799016,189.22,189.2,5.2818]
[1755480031042,0.03799016,189.22,189.21,2.87]
[1755480032336,0.03799016,189.22,189.16,2.87]
[1755480032337,2.96799016,189.22,189.16,2.87]
[1755480032949,2.93,189.21,189.17,5.2827]
[1755480033147,0.03799016,189.22,189.18,2.87]
[1755480033343,0.03799016,189.22,189.19,5.2821]
[1755480033550,0.03799016,189.22,189.17,2.87]
[1755480033844,2.96799016,189.22,189.17,2.87]
[1755480034053,2.96799016,189.22,189.19,2.87]
[1755480034054,2.93,189.21,189.19,2.87]
[1755480034240,2.93,189.21,189.16,2.87]
[1755480034545,2.93,189.19,189.17,2.87]
[1755480035048,2.93,189.19,189.16,5.2829]
[1755480035249,0.03799016,189.22,189.18,2.87]
[1755480035453,2.93,189.2,189.18,2.87]
[1755480035654,2.93,189.21,189.19,2.87]
[1755480035852,2.96799016,189.22,189.16,2.87]
[1755480036855,2.93,189.21,189.19,2.87]
[1755480038339,0.03799016,189.22,189.16,5.2829]
[1755480038545,2.93,189.2,189.18,2.87]
[1755480038848,2.93,189.19,189.15,7.25361063]
[1755480039148,2.93,189.21,189.15,8.1532]
[1755480039344,2.93,189.21,189.15,2.87]
[1755480039544,0.03799016,189.22,189.15,4.84041063]
[1755480039746,0.03799016,189.22,189.16,2.87]
[1755480040143,0.03799016,189.22,189.18,5.2822]
[1755480040344,0.03799016,189.22,189.21,2.87]
[1755480040642,0.03799016,189.22,189.15,5.86398102]
[1755480040851,2.93,189.2,189.14,5.86398102]
[1755480041149,0.03799016,189.22,189.17,5.2825]
[1755480041350,0.03799016,189.22,189.17,2.87]
[1755480041550,2.93,189.21,189.17,2.87]
[1755480041752,2.93,189.2,189.16,10.12321063]
[1755480041953,0.03799016,189.22,189.17,2.87]
[1755480041954,2.93,189.19,189.17,2.87]
[1755480042253,2.93,189.19,189.18,2.87]
[1755480042651,2.93,189.21,189.15,2.87]
[1755480042953,2.93,189.21,189.06,0.92008725]
[1755480042954,2.93,189.21,189.12,2.87]
[1755480043355,5.3165823,189.18,189.12,8.1539]
[1755480043551,2.9640823,189.18,189.12,2.87]
[1755480043951,0.0340823,189.18,189.17,2.87]
[1755480044552,0.0340823,189.18,189.17,8.1527]
[1755480045551,2.9640823,189.18,189.11,2.87]
[1755480045861,2.9640823,189.18,189.1,3.34387152]
[1755480046169,2.93,189.15,189.09,2.87]
[1755480046656,3.34387152,189.26,189.17,2.87]
[1755480046857,2.93,189.24,189.17,2.87]
[1755480047053,2.93,189.22,189.13,5.2837]
[1755480047260,2.93,189.22,189.15,2.87]
[1755480047757,2.93,189.2,189.16,2.99]
[1755480047958,2.9685833,189.2,189.16,2.99]
[1755480048145,2.9685833,189.2,189.14,2.99]
[1755480048350,3.05,189.19,189.16,2.99]
[1755480048549,3.05,189.19,189.1,3.34387152]
[1755480048550,3.05,189.19,189.11,2.99]
[1755480049351,0.0385833,189.2,189.11,2.99]
[1755480049551,0.0385833,189.2,189.14,2.99]
[1755480049948,0.0385833,189.2,189.17,5.2825]
[1755480050149,3.0885833,189.2,189.18,2.99]
[1755480050358,3.05,189.19,189.1,3.34387152]
[1755480050556,3.05,189.19,189.11,2.99]
[1755480052556,0.0385833,189.2,189.11,2.99]
[1755480053155,0.0385833,189.2,189.18,2.99]
[1755480053351,0.0385833,189.2,189.19,2.99]
[1755480053856,0.0385833,189.2,189.19,8.2721]
[1755480054657,0.0385833,189.2,189.13,132.74]
[1755480054658,0.0385833,189.2,189.18,8.2724]
[1755480054961,3.05,189.19,189.18,8.2724]
[1755480055162,3.0885833,189.2,189.18,8.2724]
[1755480055360,0.0385833,189.2,189.19,2.99]
[1755480055660,3.0885833,189.2,189.19,2.99]
[1755480055866,3.0885833,189.2,189.15,2.99]
[1755480056165,0.0385833,189.2,189.15,2.99]
[1755480056467,0.0385833,189.2,189.14,3.34387152]
[1755480056468,0.0385833,189.2,189.19,8.2721]
[1755480057766,3.05,189.29,189.19,3.51]
[1755480057967,3.05,189.29,189.19,2.99]
[1755480058158,3.05,189.27,189.26,2.99]
[1755480058357,3.05,189.27,189.19,3.34387152]
[1755480058560,3.05,189.32,189.2,2.99]
[1755480058766,3.86894686,189.31,189.27,5.2797]
[1755480058962,3.05,189.3,189.28,2.99]
[1755480059159,3.05,189.29,189.28,2.99]
[1755480059360,3.05,189.34,189.28,2.99]
[1755480059560,3.05,189.32,189.27,3.02836235]
[1755480060158,3.05,189.37,189.28,2.99]
[1755480060363,3.05,189.36,189.28,2.99]
[1755480060661,6.9194146,189.35,189.28,2.99]
[1755480060965,3.86905629,189.34,189.3,0.03675593]
[1755480061264,3.86905629,189.33,189.3,0.03675593]
[1755480061567,3.05,189.31,189.3,0.03675593]
[1755480061762,3.05,189.31,189.23,3.34387152]
[1755480061763,3.05,189.31,189.24,2.99]
[1755480061967,3.05,189.31,189.29,0.03341669]
[1755480062763,9.13868609,189.38,189.29,0.03341669]
[1755480062963,3.05,189.3,189.29,0.03341669]
[1755480063270,3.05,189.29,189.21,2.99]
[1755480063463,3.05,189.27,189.21,8.2715]
[1755480064063,3.05,189.28,189.23,2.99]
[1755480064267,3.05,189.27,189.24,2.99]
[1755480064572,3.05,189.26,189.24,2.99]
[1755480064966,3.05,189.33,189.21,2.99]
[1755480065162,3.05,189.31,189.21,2.99]
[1755480065366,3.05,189.29,189.21,2.99]
[1755480065565,6.9154361,189.28,189.18,2.99]
[1755480065769,3.05,189.28,189.18,2.99]
[1755480066366,3.05,189.27,189.21,8.2716]
[1755480067075,3.05,189.25,189.18,2.99]
[1755480067574,3.05,189.31,189.21,2.99]
[1755480067774,3.05,189.29,189.21,2.99]
[1755480067966,8.3299,189.27,189.21,8.2713]
[1755480068166,5.2799,189.27,189.15,132.8]
[1755480068367,3.05,189.25,189.22,2.99]
[1755480068565,5.2804,189.26,189.22,2.99]
[1755480068765,3.34387152,189.32,189.22,2.99]
[1755480068968,3.05,189.3,189.16,2.99]
[1755480069167,3.05,189.26,189.22,5.2813]
[1755480069367,3.05,189.31,189.2,2.99]
[1755480069569,3.05,189.29,189.2,2.99]
[1755480069765,3.87665973,189.28,189.2,2.99]
[1755480069965,3.05,189.27,189.2,2.99]
[1755480070277,21.59481457,189.35,189.16,3.34387152]
[1755480070278,3.05,189.34,189.17,2.99]
[1755480070473,8.03012228,189.33,189.17,2.99]
[1755480070685,8.329,189.31,189.25,5.2802]
[1755480070878,5.279,189.31,189.2,3.34387152]
[1755480071079,3.05,189.28,189.25,2.99]
[1755480071278,3.05,189.27,189.25,2.99]
[1755480071871,3.34387152,189.32,189.22,2.99]
[1755480072066,3.05,189.3,189.16,2.99]
[1755480072273,3.05,189.28,189.16,2.99]
[1755480072474,3.05,189.26,189.16,2.99]
[1755480072974,3.05,189.22,189.2,2.99]
[1755480073170,3.05,189.21,189.2,2.99]
[1755480074081,5.2808,189.24,189.2,2.99]
[1755480074282,3.05,189.23,189.2,2.99]
[1755480074481,3.05,189.22,189.2,2.99]
[1755480074680,3.05,189.31,189.16,2.99]
[1755480074878,3.05,189.29,189.16,2.99]
[1755480075082,3.05,189.26,189.16,2.99]
[1755480075478,5.79481457,189.35,189.16,2.99]
[1755480075673,5.2795,189.29,189.16,2.99]
[1755480075872,3.8797901,189.28,189.16,2.99]
[1755480076178,24.55289731,189.37,189.23,5.2809]
[1755480076179,8.3294,189.29,189.23,5.2809]
[1755480076375,3.05,189.28,189.24,2.99]
[1755480076576,3.05,189.28,189.25,2.99]
[1755480076771,3.05,189.28,189.19,3.34387152]
[1755480076977,3.05,189.36,189.2,2.99]
[1755480077178,3.05,189.34,189.2,2.99]
[1755480077378,5.2788,189.31,189.25,5.2803]
[1755480077685,3.05,189.31,189.2,2.99]
[1755480078085,3.04,189.36,189.2,2.88]
[1755480078385,3.04,189.34,189.2,2.88]
[1755480078579,3.04,189.28,189.24,2.88]
[1755480078779,3.04,189.28,189.2,2.88]
[1755480079885,3.04,189.27,189.25,2.88]
[1755480080286,3.04,189.31,189.28,2.88]
[1755480080485,3.04,189.3,189.28,2.88]
[1755480080674,5.79481457,189.37,189.2,2.88]
[1755480080876,3.04,189.32,189.24,2.88]
[1755480081285,3.04,189.31,189.29,8.1591]
[1755480082074,3.04,189.32,189.29,2.88]
[1755480082385,3.04,189.37,189.24,2.88]
[1755480082578,5.2787,189.32,189.26,5.28]
[1755480082779,3.04,189.3,189.27,2.88]
[1755480082982,3.04,189.29,189.27,2.88]
[1755480083175,3.04,189.37,189.27,2.88]
[1755480083376,3.04,189.35,189.27,2.88]
[1755480083579,3.04,189.33,189.27,2.88]
[1755480083786,3.04,189.28,189.25,2.88]
[1755480084085,3.04,189.27,189.25,2.88]
[1755480084274,3.04,189.35,189.25,2.88]
[1755480084477,3.04,189.33,189.22,2.88]
[1755480084688,3.04,189.31,189.22,2.88]
[1755480084880,3.04,189.25,189.22,2.88]
[1755480085086,5.2802,189.27,189.22,2.88]
[1755480085285,5.2802,189.27,189.23,2.88]
[1755480085582,3.04,189.31,189.16,2.88]
[1755480085788,3.34387152,189.32,189.16,2.88]
[1755480085789,3.04,189.29,189.16,2.88]
[1755480085984,5.2807,189.25,189.19,5.2821]
[1755480086380,3.04,189.31,189.16,2.88]
[1755480086674,3.04,189.29,189.16,2.88]
[1755480087081,5.2797,189.28,189.16,2.88]
[1755480087388,3.04,189.27,189.16,2.88]
[1755480087888,3.04,189.35,189.2,2.88]
[1755480088084,3.04,189.33,189.2,2.88]
[1755480088286,3.04,189.3,189.2,2.88]
[1755480088986,3.04,189.31,189.2,2.88]
[1755480089487,3.04,189.3,189.27,2.88]
[1755480089680,3.04,189.3,189.28,2.88]
[1755480090482,3.04,189.32,189.23,3.34387152]
[1755480090682,3.04,189.39,189.28,5.2795]
[1755480090893,3.04,189.37,189.28,8.1595]
[1755480091189,3.04,189.35,189.28,8.1595]
[1755480091388,3.04,189.33,189.28,8.1595]
[1755480091577,3.04,189.31,189.29,2.88]
[1755480091782,3.04,189.31,189.29,8.1593]
[1755480091982,3.04,189.31,189.29,5.2793]
[1755480092284,3.34387152,189.41,189.3,5.2789]
[1755480092285,3.04,189.34,189.3,5.2789]
[1755480092590,3.04,189.41,189.31,2.88]
[1755480092777,3.04,189.39,189.31,2.88]
[1755480092977,3.91598432,189.38,189.31,2.88]
[1755480093189,3.04,189.36,189.31,2.88]
[1755480093483,3.91598432,189.35,189.31,2.88]
[1755480093677,3.04,189.41,189.31,2.88]
[1755480093882,3.04,189.39,189.31,2.88]
[1755480094191,3.04,189.37,189.31,2.88]
[1755480094489,8.3178,189.35,189.31,2.88]
[1755480094690,3.04,189.33,189.3,5.279]
[1755480094881,3.04,189.33,189.32,2.88]
[1755480095077,5.2775,189.36,189.32,2.88]
[1755480095277,3.04,189.38,189.24,2.88]
[1755480095481,3.04,189.36,189.24,2.88]
[1755480095684,3.04,189.33,189.24,2.88]
[1755480095885,3.07349908,189.33,189.24,2.88]
[1755480096085,5.2793,189.3,189.24,2.88]
[1755480096281,0.03349908,189.33,189.22,5.2812]
[1755480096488,3.04,189.31,189.23,2.88]
[1755480096791,3.04,189.28,189.23,2.88]
[1755480096990,3.04,189.27,189.25,2.88]
[1755480097386,5.31285107,189.29,189.19,2.88]
[1755480097387,3.04,189.28,189.19,2.88]
[1755480097992,3.91459782,189.27,189.19,2.88]
[1755480098184,3.04,189.28,189.19,2.88]
[1755480098385,3.04,189.22,189.2,2.88]
[1755480099191,3.04,189.22,189.21,2.88]
[1755480099389,5.2808,189.24,189.21,2.88]
[1755480099585,3.04,189.23,189.21,2.88]
[1755480099991,3.34387152,189.31,189.22,2.88]
[1755480100291,3.04,189.29,189.22,2.88]
[1755480100487,5.2806,189.25,189.22,2.88]
[1755480100694,3.04,189.3,189.15,2.88]
[1755480100991,3.04,189.28,189.22,2.88]
[1755480101182,3.91655731,189.27,189.23,2.88]
[1755480101387,3.04,189.25,189.24,2.88]
[1755480102094,3.04,189.25,189.22,2.88]
[1755480102287,3.04,189.25,189.23,2.88]
[1755480102488,5.2799,189.27,189.2,5.2818]
[1755480102688,3.04,189.25,189.2,2.88]
[1755480102889,5.79481457,189.32,189.11,2.88]
[1755480102890,3.04,189.23,189.11,2.88]
[1755480103085,3.04,189.21,189.08,132.38]
[1755480103285,3.04,189.26,189.1,2.88]
[1755480103485,8.75289731,189.32,189.14,2.88]
[1755480103486,3.04,189.25,189.14,2.88]
[1755480103694,3.04,189.25,189.2,2.88]
[1755480103891,3.04,189.3,189.14,2.88]
[1755480104091,3.04,189.28,189.14,2.88]
[1755480104300,3.04,189.26,189.2,8.1619]
[1755480104597,3.04,189.26,189.18,2.88]
[1755480104899,5.2804,189.26,189.19,5.2821]
[1755480105392,3.04,189.24,189.19,2.88]
[1755480106400,3.04,189.24,189.16,5.2827]
[1755480106601,3.04,189.22,189.17,2.88]
[1755480106791,3.04,189.29,189.17,2.88]
[1755480106991,11.93779871,189.28,189.17,2.88]
[1755480107191,5.2811,189.23,189.13,3.34387152]
[1755480107392,3.04,189.21,189.19,2.88]
[1755480107796,2.83,189.29,189.14,3.02]
[1755480107996,2.83,189.27,189.14,3.02]
[1755480108192,2.83,189.25,189.19,5.282]
[1755480108394,3.91835632,189.24,189.14,3.02]
[1755480108595,2.83,189.26,189.14,3.02]
[1755480109196,3.34387152,189.31,189.22,3.02]
[1755480109398,2.83,189.24,189.22,3.02]
[1755480110000,2.83,189.24,189.2,3.02]
[1755480110199,2.83,189.3,189.14,3.02]
[1755480110390,5.2804,189.26,189.14,3.02]
[1755480110594,2.83,189.25,189.14,3.02]
[1755480111203,2.83,189.24,189.14,3.02]
[1755480112198,5.2815,189.22,189.16,5.2829]
[1755480112402,2.83,189.24,189.13,3.02]
[1755480112600,2.83,189.22,189.13,3.02]
[1755480113397,2.83,189.21,189.18,3.02]
[1755480113601,2.83,189.2,189.19,3.02]
[1755480113997,1.97083673,189.27,189.19,3.02]
[1755480114303,2.83,189.25,189.19,3.02]
[1755480114506,2.83,189.23,189.19,3.02]
[1755480114705,5.2813,189.22,189.12,1.97083673]
[1755480114907,2.83,189.21,189.13,3.02]
[1755480115809,2.83,189.29,189.17,3.02]
[1755480116109,5.2807,189.24,189.17,3.02]
[1755480116304,2.83,189.23,189.17,3.02]
[1755480116698,5.2811,189.23,189.17,3.02]
[1755480116899,2.83,189.21,189.13,1.97083673]
[1755480117100,2.83,189.21,189.19,3.02]
[1755480117802,2.83,189.21,189.2,3.02]
[1755480118501,2.83,189.24,189.16,1.97083673]
[1755480118804,15.86,189.35,189.1,132.12]
[1755480118805,1.97083673,189.29,189.21,5.2814]
[1755480119006,5.79481457,189.34,189.22,3.02]
[1755480119007,6.74479346,189.28,189.22,3.02]
[1755480119199,2.83,189.28,189.22,3.02]
[1755480119804,2.83,189.25,189.2,3.02]
[1755480120002,2.83,189.25,189.21,3.02]
[1755480120204,2.83,189.28,189.18,3.02]
[1755480120402,2.83,189.26,189.18,3.02]
[1755480121410,2.83,189.26,189.21,5.2815]
[1755480121602,2.83,189.25,189.21,5.2815]
[1755480121798,5.2797,189.28,189.1,132.12]
[1755480121799,2.83,189.34,189.24,3.02]
[1755480122009,2.83,189.32,189.24,3.02]
[1755480122211,5.2802,189.27,189.21,3.02]